{"text_format":"3","workbook":"xlsx","n_sheets":16,"sheets":["自报","附件","校招汇总","总-社招汇","总-社招明","省汇","杭","温","嘉","湖","绍","金","衢","台","舟","省"],"not_rendered":{"defined_names":13,"comments":2},"read":"whole","date_system":"1900"}

{"sheet":"自报","index":0,"n_rows":16,"n_cols":10,"rows_kept":16,"hidden":true,"merged":[[0,0,0,1],[1,0,1,9],[3,0,3,1],[14,0,14,1],[15,0,15,9]]}
["附件1："]
["2015年省分行社会招聘需求计划表"]
["序号","单位","用工上限","现有用工人数","2015届校园招聘拟录用人数","剩余用工计划","已报总行社会招聘人数","省分行社会招聘需求人数","差额","备注"]
["表间关系",null,"A","B","C","D=A-B-C","E","F","G=D-E-F"]
[1,"杭州",888,839,31,{"$f":"C5-D5-E5","v":18},9,39,{"$f":"F5-G5-H5","v":-30},"1.2015年度已离职人员26人，急需补员，从离职原因看，薪酬是一个方面，另一个方面是人员紧缺（不仅仅是数字上，实际用工中还有不少请产假、病假等情况）造成员工、特别是柜员休息休假得不到保证，若不及时增员，将造成恶性循环，且存在风险隐患。\n2.现已递交离职申请的有单震、姚利利、唐亮、陈慧、李建宾、叶君、邵露7人，急需补员。\n3.10名下半年将退休人员急需补员：潘御娣（10月30日）、孔建英（12月8日）、许璐钰（10月2日）、钟华（8月11日）、张红玲（7月5日）、孙烨（4月14日）、陈燕燕（10月28日）、凌雪芬（12月27日）、马巧苗（12月24日）、方晓雯（10月26日）、尹军红。\n4.郭晓宇、滕寒晨、王颖一、蔡慕秋、刘志芬、胡志丽将调动，需补员。\n5.2016年初杭分财富中心将开业，初步测算必要增员7人：主任1名，理财经理4名，大堂经理2名。因财富中心人员要求专业、形象好，须提前谋划储备，以防影响开业。其余柜员等需求待下半年招聘实时补员。此事宜将另行汇报。\n6.地处偏远的支行招聘本科学历有一定难度，因此部分支行柜员岗位补员学历需求为本科（优秀者可放宽至大专）。\n7.从整体上来说，杭州市分行网点共有51个，按照888上限来计算，点均人数仅17.4，大大低于其他分行，人员紧缺程度不言而喻。且从员工队伍建设看，缺员严重使得员工多岗位锻炼培养、梯队建设无法有效实施，造成一定程度上对员工特别是青年员工积极性的打击，不利于人员结构优化，不利于我行健康长足发展。从14年度千人招聘的情况来看，由于各方面原因，千人招聘成功率不高，特别是同业招聘成功率较低，为适应实际招聘市场，一部分行内客户经理需求拟以内部选拔的方式实现，因此本次社招计划中有一部分柜员需求。\n恳请省分行考虑我行实际需求和困难，给予增员。\n"]
[2,"温州",915,874,36,{"$f":"C6-D6-E6","v":5},11,11,{"$f":"F6-G6-H6","v":-17},"省分行选聘4人，下半年退休1人，已提交辞职申请5人，另离职备员7人"]
[3,"嘉兴",{"$f":"548+3","v":551},530,20,{"$f":"C7-D7-E7","v":1},4,5,{"$f":"F7-G7-H7","v":-8},"下半年有2人退休，离职人数预计至少6人"]
[4,"湖州",431,405,7,{"$f":"C8-D8-E8","v":19},10,19,{"$f":"F8-G8-H8","v":-10},"现有用工人数含市分行挂职行长助理柳青"]
[5,"绍兴",{"$f":"633+3","v":636},614,22,{"$f":"C9-D9-E9","v":0},3,12,{"$f":"F9-G9-H9","v":-15},"上半年离职退休14人，下半年按15人测算"]
[6,"金华",847,800,33,{"$f":"C10-D10-E10","v":14},14,24,{"$f":"F10-G10-H10","v":-24},"下半年退休6人，递交辞职报告14人，下半年省行竞聘人员2人，省行下派县市挂职助理2人，共计24人。"]
[7,"衢州",{"$f":"415+3","v":418},397,13,{"$f":"C11-D11-E11","v":8},3,5,{"$f":"F11-G11-H11","v":0}]
[8,"丽水",607,604,20,{"$f":"C12-D12-E12","v":-17},3,0,{"$f":"F12-G12-H12","v":-20}]
[9,"台州",777,744,30,{"$f":"C13-D13-E13","v":3},2,22,{"$f":"F13-G13-H13","v":-21},"7月拟离职5人、下半年拟退休3人、省行内部选聘拟调2人，目前又已提出离职3人，综合考虑下半年情况，提出22人的社会招聘需求。"]
[10,"舟山",{"$f":"367+3","v":370},353,11,{"$f":"C14-D14-E14","v":6},3,8,{"$f":"F14-G14-H14","v":-5},"截止8月底将有3名离职人员（程艳、胡妍、邵芬波），省分行内部选聘2名员工（张琴、孔秋叶）"]
["合计",null,{"$f":"SUM(C5:C14)","v":6440},{"$f":"SUM(D5:D14)","v":6160},{"$f":"SUM(E5:E14)","v":223},{"$f":"SUM(F5:F14)","v":57},{"$f":"SUM(G5:G14)","v":62},{"$f":"SUM(H5:H14)","v":145},{"$f":"SUM(I5:I14)","v":-150}]
["说明：用工上限已包括辖内2015年继续实施迁址改革二类支行增员计划，增员标准按每网点3人的标准核增，详见附件1-2。"]

{"sheet":"附件","index":1,"n_rows":8,"n_cols":11,"rows_kept":8,"merged":[[1,0,1,10]]}
["附件："]
["中国邮政储蓄银行浙江省分行社会招聘需求表"]
["序号","二级分行","一级支行","所在部门/\n二级支行","招聘岗位","工作\n地点","岗位职责","年龄要求","学历要求","专业要求","工作经历要求"]
[1,"湖州市分行",null,"办公室","系统维护","湖州","负责护信息系统、硬件和网络维护管理工作。","35周岁及以下","国民教育系列大学本科及以上","信息技术类专业","具有2年以上相关岗位从业经历。"]
[2,"湖州市分行",null,null,"客户经理","湖州","负责个人信贷、公司信贷、各项业务营销等工作。\n","35周岁及以下","国民教育系列大学本科及以上","金融经济类专业优先","具有2年以上工作经历，有金融行业相关岗位经历者优先。"]
[3,"湖州市分行","长兴县支行",null,"客户经理","长兴","负责个人信贷、公司信贷、各项业务营销等工作。\n","35周岁及以下","国民教育系列大学本科及以上","金融经济类专业优先","具有2年以上工作经历，有金融行业相关岗位经历者优先。"]
[4,"湖州市分行","安吉县支行",null,"客户经理","安吉","负责个人信贷、公司信贷、各项业务营销等工作。\n","35周岁及以下","国民教育系列大学本科及以上","金融经济类专业优先","具有2年以上工作经历，有金融行业相关岗位经历者优先。"]
[5,"湖州市分行","德清县支行",null,"客户经理","德清","负责个人信贷、公司信贷、各项业务营销等工作。\n","35周岁及以下","国民教育系列大学本科及以上","金融经济类专业优先","具有2年以上工作经历，有金融行业相关岗位经历者优先。"]

{"sheet":"校招汇总","index":2,"n_rows":15,"n_cols":7,"rows_kept":15,"hidden":true,"merged":[[0,0,0,6],[14,0,14,6]]}
["2015年度校园招聘毕业情况汇总表"]
["单位","拟录用人数","已毕业人数","未毕业人数","后续违约人数","实际录用人数","情况说明"]
["省分行",{"$f":"C3+D3","v":10},10,null,null,{"$f":"B3-E3","v":10}]
["杭州",32,30,2,1,{"$f":"B4-E4","v":31},"王维：2016年正式毕业，2015.10可获得临时毕业证，11月获得教育部认证。吕行推荐人员。\n魏琳：待8月初回国后安排笔试面试体检及公示。"]
["温州",{"$f":"C5+D5","v":36},34,2,null,{"$f":"B5-E5","v":36},"陈科元：澳门科技大学，2015.8毕业，预计9-10月获得教育部认证；\n吕蒙田：重庆工商大学，因一门考试未通过学分不够须9月补考，毕业证预计10月份拿到。父亲是温州市邮政公司人力部老总。【保留资格至年底】"]
["嘉兴",{"$f":"C6+D6","v":21},21,null,null,{"$f":"B6-E6","v":21}]
["湖州",{"$f":"C7+D7","v":7},7,null,null,{"$f":"B7-E7","v":7}]
["绍兴",{"$f":"C8+D8","v":22},22,null,null,{"$f":"B8-E8","v":22}]
["金华",32,31,1,1,{"$f":"B9-E9","v":31},"姜健彭：上海财经大学浙江学院，因未通过英语四级考试，未发学位证书，学校要求两年内通过英语四级考试后方可予以补发。英语四级每年6月、12月考试，其2015年6月考试成绩不理想，年内应无法通过。【保留资格至年底】\n陈凯航：浙江科技学院，因10几门课程未通过未发双证，9月份后通过考试方可补发。【不予录用】\n"]
["衢州",{"$f":"C10+D10","v":13},13,null,null,{"$f":"B10-E10","v":13}]
["丽水",{"$f":"C11+D11","v":20},19,1,null,{"$f":"B11-E11","v":20},"卢彦辰：上海财经大学浙江学院，因英语四级未通过，无学位证书，预计9月份才能出成绩。原丽水邮政局副局长，现台州邮政局局长刑林杰推荐人员。【保留资格至年底】"]
["台州",{"$f":"C12+D12","v":30},30,null,null,{"$f":"B12-E12","v":30}]
["舟山",{"$f":"C13+D13","v":11},11,null,null,{"$f":"B13-E13","v":11}]
["合计",{"$f":"SUM(B3:B13)","v":234},{"$f":"SUM(C3:C13)","v":228},{"$f":"SUM(D3:D13)","v":6},{"$f":"SUM(E3:E13)","v":2},{"$f":"SUM(F3:F13)","v":232}]
["备注：\n一、招聘公告要求\n（一）境内院校应届毕业生须具有全日制普通高等院校大学本科（含）以上学历、学位，在2015年8月前毕业，报到时须获得国家认可的就业报到证、毕业证和学位证；\n（二）境外院校应届毕业生须为初次就业的留学归国人员，具有大学本科（含）以上学历、学位，在2014年1月至2015年8月毕业，报到时须取得国家教育部出具的学历（学位）认证。\n\n二、建议方案\n（一）对于已毕业228人，计划7月20日前提交总行审批，经总行审批同意后于8月组织签订劳动合同。\n（二）对于境外毕业生王维、陈科元2人，建议保留录用资格，视毕业和教育部认证情况统一提交总行审批。\n（三）对于因学业成绩导致延期毕业的姜健彭等4人，建议取消录用资格，通过短信通知。"]

{"sheet":"总-社招汇","index":3,"n_rows":15,"n_cols":7,"rows_kept":15,"hidden":true,"merged":[[0,0,0,6]]}
["社会招聘需求人数汇总表-总行社会招聘"]
["单位","高管","公司","国际","市场","电银","合计"]
["杭州",null,2,3,2,2,{"$f":"SUM(B3:F3)","v":9}]
["温州",1,3,5,2,1,{"$f":"SUM(B4:F4)","v":12}]
["嘉兴",null,null,1,1,1,{"$f":"SUM(B5:F5)","v":3}]
["湖州",null,5,2,null,1,{"$f":"SUM(B6:F6)","v":8}]
["绍兴",null,1,1,null,1,{"$f":"SUM(B7:F7)","v":3}]
["金华",null,5,4,3,2,{"$f":"SUM(B8:F8)","v":14}]
["衢州",null,1,1,null,1,{"$f":"SUM(B9:F9)","v":3}]
["丽水",null,null,1,1,1,{"$f":"SUM(B10:F10)","v":3}]
["台州",1,null,null,1,1,{"$f":"SUM(B11:F11)","v":3}]
["舟山",null,null,1,1,1,{"$f":"SUM(B12:F12)","v":3}]
["小计",{"$f":"SUM(B3:B12)","v":2},{"$f":"SUM(C3:C12)","v":17},{"$f":"SUM(D3:D12)","v":19},{"$f":"SUM(E3:E12)","v":11},{"$f":"SUM(F3:F12)","v":12},{"$f":"SUM(B13:F13)","v":61}]
["省分行",1,1,2,3,2,{"$f":"SUM(B14:F14)","v":9}]
["合计",{"$f":"B13+B14","v":3},{"$f":"C13+C14","v":18},{"$f":"D13+D14","v":21},{"$f":"E13+E14","v":14},{"$f":"F13+F14","v":14},{"$f":"SUM(B15:F15)","v":70}]

{"sheet":"总-社招明","index":4,"n_rows":64,"n_cols":14,"rows_kept":64,"hidden":true,"merged":[[0,0,0,13],[1,0,1,13],[2,0,2,1],[2,6,2,7],[2,9,2,10],[2,12,2,13]]}
["中国邮政储蓄银行2015年社会招聘需求汇总表（浙江分行）"]
["该需求明细表已通过分行党委会研究并审定。"]
["行领导：",{"$nulls":5},"分行公章：",null,null,"填报人：",null,"凌玲","填报时间：2015年7月3日"]
["序号","一级分行名称","二级分行\n名称","一级支行\n名称","所在\n部门","招聘岗位","招聘\n人数","工作\n地点","岗位职责","专业要求","学历要求","工作经验要求","其他任职要求","其他"]
[1,"浙江分行","无","无","授信管理部","副总经理",1,"杭州","略","专业不限","本科及以上","具备5年以上金融行业从业经历；具有相关授信管理从业经历。",null,"原则上年龄45周岁及以下"]
[2,"浙江分行","无","无","公司业务部","产品经理（公司业务）",1,"杭州","负责公司业务营销管理、市场分析、产品研发、新产品营销推广与培训指导、营销支持等工作。","金融经济类专业","本科及以上","具备2年以上金融行业相关岗位从业经历",null,"原则上年龄35周岁及以下"]
[3,"浙江分行","无","无","国际业务部","产品经理（国际业务）",2,"杭州","负责国际业务产品市场调研、产品设计、营销推广、销售支持、业务培训等工作。","金融经济类专业","本科及以上","具备3年以上金融行业相关岗位从业经历",null,"原则上年龄35周岁及以下"]
[4,"浙江分行","无","无","金融市场部","票据营销岗",1,"杭州","负责融资性票据业务的营销及买入票据的初步审查等工作。","金融经济类专业","本科及以上","具备2年以上金融行业相关岗位从业经历",null,"原则上年龄35周岁及以下"]
[5,"浙江分行","无","无","金融市场部","产品经理（金融市场）",2,"杭州","负责金融市场业务营销管理、市场分析、产品研发、新产品营销推广与培训指导、营销支持等工作。","金融经济类专业","本科及以上","具备3年以上金融行业相关岗位从业经历",null,"原则上年龄35周岁及以下"]
[6,"浙江分行","无","无","电子银行部","产品经理（电子银行）",2,"杭州","负责电子银行业务产品市场调研、行业分析、产品设计、营销推广、销售支持、业务培训、系统管理、业务指导等相关工作。","金融经济类专业","本科及以上","具备2年以上金融行业相关岗位从业经历","具有互联网企业、大型电子商务企业工作经历的优先","原则上年龄35周岁及以下"]
[7,"浙江分行","温州市分行","无","行长室","副行长",1,"温州","略","专业不限","本科及以上","具备5年以上金融行业从业经历；具有同业分支行领导经历。",null,"原则上年龄45周岁及以下"]
[8,"浙江分行","台州市分行","无","行长室","副行长",1,"台州","略","专业不限","本科及以上","具备5年以上金融行业从业经历；具有同业分支行领导经历。",null,"原则上年龄45周岁及以下"]
[9,"浙江分行","杭州市分行","无","公司业务部","产品经理（公司业务）",2,"杭州","负责公司业务营销管理、市场分析、产品研发、新产品营销推广与培训指导、营销支持等工作。","金融经济类专业","本科及以上","具备2年以上金融行业相关岗位从业经历",null,"原则上年龄35周岁及以下"]
[10,"浙江分行","杭州市分行","无","公司业务部","业务管理（国际业务）",3,"杭州","负责国际业务的制度建设、业务检查、风险控制、培训与指导等工作。","金融经济类专业","本科及以上","具备2年以上金融行业相关岗位从业经历",null,"原则上年龄35周岁及以下"]
[11,"浙江分行","杭州市分行","无","公司业务部","产品经理（金融市场）",2,"杭州 ","负责金融市场业务营销管理、市场分析、产品研发、新产品营销推广与培训指导、营销支持等工作。","金融经济类专业","本科及以上","具备2年以上金融行业相关岗位从业经历",null,"原则上年龄35周岁及以下"]
[12,"浙江分行","杭州市分行","无","电子银行部","产品经理（电子银行）",2,"杭州","负责电子银行业务产品市场调研、行业分析、产品设计、营销推广、销售支持、业务培训、系统管理、业务指导等相关工作。","金融经济类专业","本科及以上","具备2年以上金融行业相关岗位从业经历","具有互联网企业、大型电子商务企业工作经历的优先","原则上年龄35周岁及以下"]
[13,"浙江分行","温州市分行","无","公司业务部","产品经理（国际业务）",1,"温州","负责国际业务产品市场调研、产品设计、营销推广、销售支持、业务培训等工作。","金融经济类专业","本科及以上","具备2年以上金融行业相关岗位从业经历",null,"原则上年龄35周岁及以下"]
[14,"浙江分行","温州市分行","无","电子银行部","产品经理（电子银行）",1,"温州","负责电子银行业务产品市场调研、行业分析、产品设计、营销推广、销售支持、业务培训、系统管理、业务指导等相关工作。","金融经济类专业","本科及以上","具备2年以上金融行业相关岗位从业经历","具有互联网企业、大型电子商务企业工作经历的优先","原则上年龄35周岁及以下"]
[15,"浙江分行","嘉兴市分行","无","公司业务部","产品经理（国际业务）",1,"嘉兴","负责国际业务产品市场调研、产品设计、营销推广、销售支持、业务培训等工作。","金融经济类专业","本科及以上","具备2年以上金融行业相关岗位从业经历",null,"原则上年龄35周岁及以下"]
[16,"浙江分行","嘉兴市分行","无","公司业务部","产品经理（金融市场）",1,"嘉兴","负责金融市场业务营销管理、市场分析、产品研发、新产品营销推广与培训指导、营销支持等工作。","金融经济类专业","本科及以上","具备2年以上金融行业相关岗位从业经历",null,"原则上年龄35周岁及以下"]
[17,"浙江分行","嘉兴市分行","无","电子银行部","产品经理（电子银行）",1,"嘉兴","负责电子银行业务产品市场调研、行业分析、产品设计、营销推广、销售支持、业务培训、系统管理、业务指导等相关工作。","金融经济类专业","本科及以上","具备2年以上金融行业相关岗位从业经历","具有互联网企业、大型电子商务企业工作经历的优先","原则上年龄35周岁及以下"]
[18,"浙江分行","湖州市分行","无","公司业务部","产品经理（公司业务）",2,"湖州","负责公司业务营销管理、市场分析、产品研发、新产品营销推广与培训指导、营销支持等工作。","金融经济类专业","本科及以上","具备2年以上金融行业相关岗位从业经历",null,"原则上年龄35周岁及以下"]
[19,"浙江分行","湖州市分行","无","公司业务部","产品经理（国际业务）",2,"湖州","负责国际业务产品市场调研、产品设计、营销推广、销售支持、业务培训等工作。","金融经济类专业","本科及以上","具备2年以上金融行业相关岗位从业经历",null,"原则上年龄35周岁及以下"]
[20,"浙江分行","湖州市分行","无","电子银行部","产品经理（电子银行）",1,"湖州","负责电子银行业务产品市场调研、行业分析、产品设计、营销推广、销售支持、业务培训、系统管理、业务指导等相关工作。","金融经济类专业","本科及以上","具备2年以上金融行业相关岗位从业经历","具有互联网企业、大型电子商务企业工作经历的优先","原则上年龄35周岁及以下"]
[21,"浙江分行","绍兴市分行","无","公司业务部","产品经理（公司业务）",1,"绍兴","负责公司业务营销管理、市场分析、产品研发、新产品营销推广与培训指导、营销支持等工作。","金融经济类专业","本科及以上","具备2年以上金融行业相关岗位从业经历",null,"原则上年龄35周岁及以下"]
[22,"浙江分行","绍兴市分行","无","公司业务部","业务管理（国际业务）",1,"绍兴","负责国际业务的制度建设、业务检查、风险控制、培训与指导等工作。","金融经济类专业","本科及以上","具备2年以上金融行业相关岗位从业经历",null,"原则上年龄35周岁及以下"]
[23,"浙江分行","绍兴市分行","无","电子银行部","业务管理（电子银行）",1,"绍兴","负责网上银行、电话银行业务的制度建设、业务管理、系统管理、风险控制、培训与指导等工作。","金融经济类专业","本科及以上","具备2年以上金融行业相关岗位从业经历","具有互联网企业、大型电子商务企业工作经历的优先","原则上年龄35周岁及以下"]
[24,"浙江分行","金华市分行","无","公司业务部","产品经理（公司业务）",1,"金华","负责公司业务营销管理、市场分析、产品研发、新产品营销推广与培训指导、营销支持等工作。","金融经济类专业","本科及以上","具备2年以上金融行业相关岗位从业经历",null,"原则上年龄35周岁及以下"]
[25,"浙江分行","金华市分行","无","公司业务部","产品经理（国际业务）",1,"金华","负责国际业务产品市场调研、产品设计、营销推广、销售支持、业务培训等工作。","金融经济类专业","本科及以上","具备2年以上金融行业相关岗位从业经历",null,"原则上年龄35周岁及以下"]
[26,"浙江分行","金华市分行","无","电子银行部","产品经理（电子银行）",1,"金华","负责电子银行业务产品市场调研、行业分析、产品设计、营销推广、销售支持、业务培训、系统管理、业务指导等相关工作。","金融经济类专业","本科及以上","具备2年以上金融行业相关岗位从业经历","具有互联网企业、大型电子商务企业工作经历的优先","原则上年龄35周岁及以下"]
[27,"浙江分行","衢州市分行","无","公司业务部","业务管理（国际业务）",1,"衢州","负责国际业务的制度建设、业务检查、风险控制、培训与指导等工作。","金融经济类专业","本科及以上","具备2年以上金融行业相关岗位从业经历",null,"原则上年龄35周岁及以下"]
[28,"浙江分行","衢州市分行","无","电子银行部","业务管理（电子银行）",1,"衢州","负责网上银行、电话银行业务的制度建设、业务管理、系统管理、风险控制、培训与指导等工作。","金融经济类专业","本科及以上","具备2年以上金融行业相关岗位从业经历","具有互联网企业、大型电子商务企业工作经历的优先","原则上年龄35周岁及以下"]
[29,"浙江分行","丽水市分行","无","公司业务部","产品经理（金融市场）",1,"丽水","负责金融市场业务营销管理、市场分析、产品研发、新产品营销推广与培训指导、营销支持等工作。","金融经济类专业","本科及以上","具备2年以上金融行业相关岗位从业经历",null,"原则上年龄35周岁及以下"]
[30,"浙江分行","丽水市分行","无","电子银行部","产品经理（电子银行）",1,"丽水","负责电子银行业务产品市场调研、行业分析、产品设计、营销推广、销售支持、业务培训、系统管理、业务指导等相关工作。","金融经济类专业","本科及以上","具备2年以上金融行业相关岗位从业经历","具有互联网企业、大型电子商务企业工作经历的优先","原则上年龄35周岁及以下"]
[31,"浙江分行","台州市分行","无","公司业务部","产品经理（金融市场）",1,"台州","负责金融市场业务营销管理、市场分析、产品研发、新产品营销推广与培训指导、营销支持等工作。","金融经济类专业","本科及以上","具备2年以上金融行业相关岗位从业经历",null,"原则上年龄35周岁及以下"]
[32,"浙江分行","台州市分行","无","电子银行部","产品经理（电子银行）",1,"台州","负责电子银行业务产品市场调研、行业分析、产品设计、营销推广、销售支持、业务培训、系统管理、业务指导等相关工作。","金融经济类专业","本科及以上","具备2年以上金融行业相关岗位从业经历","具有互联网企业、大型电子商务企业工作经历的优先","原则上年龄35周岁及以下"]
[33,"浙江分行","舟山市分行","无","公司业务部","业务管理（国际业务）",1,"舟山","负责国际业务的制度建设、业务检查、风险控制、培训与指导等工作。","金融经济类专业","本科及以上","具备2年以上金融行业相关岗位从业经历",null,"原则上年龄35周岁及以下"]
[34,"浙江分行","舟山市分行","无","公司业务部","业务管理（金融市场）",1,"舟山","负责金融市场业务规章制度、业务操作流程、业务检查、业务风险控制、业务指导与培训等相关工作。","金融经济类专业","本科及以上","具备2年以上金融行业相关岗位从业经历",null,"原则上年龄35周岁及以下"]
[35,"浙江分行","舟山市分行","无","电子银行部","业务管理（电子银行）",1,"舟山","负责网上银行、电话银行业务的制度建设、业务管理、系统管理、风险控制、培训与指导等工作。","金融经济类专业","本科及以上","具备2年以上金融行业相关岗位从业经历","具有互联网企业、大型电子商务企业工作经历的优先","原则上年龄35周岁及以下"]
[36,"浙江分行","温州市分行","洞头现支行","公司业务部","业务管理（公司业务）",1,"洞头","负责公司业务规章制度、业务操作流程、业务检查、业务风险控制、业务指导与培训等工作。","金融经济类专业","本科及以上","具备2年以上金融行业相关岗位从业经历",null,"原则上年龄35周岁及以下"]
[37,"浙江分行","温州市分行","文成县支行","公司业务部","业务管理（公司业务）",1,"文成","负责公司业务规章制度、业务操作流程、业务检查、业务风险控制、业务指导与培训等工作。","金融经济类专业","本科及以上","具备2年以上金融行业相关岗位从业经历",null,"原则上年龄35周岁及以下"]
[38,"浙江分行","温州市分行","泰顺县支行","公司业务部","业务管理（公司业务）",1,"泰顺","负责公司业务规章制度、业务操作流程、业务检查、业务风险控制、业务指导与培训等工作。","金融经济类专业","本科及以上","具备2年以上金融行业相关岗位从业经历",null,"原则上年龄35周岁及以下"]
[39,"浙江分行","温州市分行","永嘉县支行","公司业务部","业务管理（国际业务）",1,"永嘉","负责国际业务的制度建设、业务检查、风险控制、培训与指导等工作。","金融经济类专业","本科及以上","具备2年以上金融行业相关岗位从业经历",null,"原则上年龄35周岁及以下"]
[40,"浙江分行","温州市分行","永嘉县支行","公司业务部","业务管理（金融市场）",1,"永嘉","负责金融市场业务规章制度、业务操作流程、业务检查、业务风险控制、业务指导与培训等相关工作。","金融经济类专业","本科及以上","具备2年以上金融行业相关岗位从业经历",null,"原则上年龄35周岁及以下"]
[41,"浙江分行","温州市分行","瑞安市支行","公司业务部","业务管理（国际业务）",1,"瑞安","负责国际业务的制度建设、业务检查、风险控制、培训与指导等工作。","金融经济类专业","本科及以上","具备2年以上金融行业相关岗位从业经历",null,"原则上年龄35周岁及以下"]
[42,"浙江分行","温州市分行","瑞安市支行","公司业务部","业务管理（金融市场）",1,"瑞安","负责金融市场业务规章制度、业务操作流程、业务检查、业务风险控制、业务指导与培训等相关工作。","金融经济类专业","本科及以上","具备2年以上金融行业相关岗位从业经历",null,"原则上年龄35周岁及以下"]
[43,"浙江分行","温州市分行","苍南县支行","公司业务部","业务管理（国际业务）",1,"苍南","负责国际业务的制度建设、业务检查、风险控制、培训与指导等工作。","金融经济类专业","本科及以上","具备2年以上金融行业相关岗位从业经历",null,"原则上年龄35周岁及以下"]
[44,"浙江分行","温州市分行","平阳县支行","公司业务部","业务管理（国际业务）",1,"平阳","负责国际业务的制度建设、业务检查、风险控制、培训与指导等工作。","金融经济类专业","本科及以上","具备2年以上金融行业相关岗位从业经历",null,"原则上年龄35周岁及以下"]
[45,"浙江分行","湖州市分行","德清县支行","公司业务部","经营管理（公司业务）",1,"德清","负责统筹管理本部门业务发展策略、市场研究、经营计划、营销策划、业务宣传、经营分析、业务激励政策等工作。","金融经济类专业","本科及以上","具备2年以上金融行业相关岗位从业经历",null,"原则上年龄35周岁及以下"]
[46,"浙江分行","湖州市分行","长兴县支行","公司业务部","经营管理（公司业务）",1,"长兴","负责统筹管理本部门业务发展策略、市场研究、经营计划、营销策划、业务宣传、经营分析、业务激励政策等工作。","金融经济类专业","本科及以上","具备2年以上金融行业相关岗位从业经历",null,"原则上年龄35周岁及以下"]
[47,"浙江分行","湖州市分行","安吉县支行","公司业务部","经营管理（公司业务）",1,"安吉","负责统筹管理本部门业务发展策略、市场研究、经营计划、营销策划、业务宣传、经营分析、业务激励政策等工作。","金融经济类专业","本科及以上","具备2年以上金融行业相关岗位从业经历",null,"原则上年龄35周岁及以下"]
[48,"浙江分行","金华市分行","永康市支行","公司业务部","经营管理（公司业务）",1,"永康","负责统筹管理本部门业务发展策略、市场研究、经营计划、营销策划、业务宣传、经营分析、业务激励政策等工作。","金融经济类专业","本科及以上","具备2年以上金融行业相关岗位从业经历",null,"原则上年龄35周岁及以下"]
[49,"浙江分行","金华市分行","永康市支行","公司业务部","业务管理（国际业务）",1,"永康","负责国际业务的制度建设、业务检查、风险控制、培训与指导等工作。","金融经济类专业","本科及以上","具备2年以上金融行业相关岗位从业经历",null,"原则上年龄35周岁及以下"]
[50,"浙江分行","金华市分行","永康市支行","公司业务部","业务管理（金融市场）",1,"永康","负责金融市场业务规章制度、业务操作流程、业务检查、业务风险控制、业务指导与培训等相关工作。","金融经济类专业","本科及以上","具备2年以上金融行业相关岗位从业经历",null,"原则上年龄35周岁及以下"]
[51,"浙江分行","金华市分行","义乌市支行","公司业务部","经营管理（公司业务）",1,"义乌","负责统筹管理本部门业务发展策略、市场研究、经营计划、营销策划、业务宣传、经营分析、业务激励政策等工作。","金融经济类专业","本科及以上","具备2年以上金融行业相关岗位从业经历",null,"原则上年龄35周岁及以下"]
[52,"浙江分行","金华市分行","武义县支行","公司业务部","业务管理（公司业务）",1,"武义","负责公司业务规章制度、业务操作流程、业务检查、业务风险控制、业务指导与培训等工作。","金融经济类专业","本科及以上","具备2年以上金融行业相关岗位从业经历",null,"原则上年龄35周岁及以下"]
[53,"浙江分行","金华市分行","武义县支行","公司业务部","业务管理（国际业务）",1,"武义","负责国际业务的制度建设、业务检查、风险控制、培训与指导等工作。","金融经济类专业","本科及以上","具备2年以上金融行业相关岗位从业经历",null,"原则上年龄35周岁及以下"]
[54,"浙江分行","金华市分行","武义县支行","公司业务部","业务管理（金融市场）",1,"武义","负责金融市场业务规章制度、业务操作流程、业务检查、业务风险控制、业务指导与培训等相关工作。","金融经济类专业","本科及以上","具备2年以上金融行业相关岗位从业经历",null,"原则上年龄35周岁及以下"]
[55,"浙江分行","金华市分行","磐安县支行","公司业务部","业务管理（公司业务）",1,"磐安","负责公司业务规章制度、业务操作流程、业务检查、业务风险控制、业务指导与培训等工作。","金融经济类专业","本科及以上","具备2年以上金融行业相关岗位从业经历",null,"原则上年龄35周岁及以下"]
[56,"浙江分行","金华市分行","兰溪市支行","公司业务部","经营经理（国际业务）",1,"兰溪","负责统筹管理本部门业务发展策略、市场研究、经营计划、营销策划、业务宣传、经营分析、业务激励政策等相关工作。","金融经济类专业","本科及以上","具备2年以上金融行业相关岗位从业经历",null,"原则上年龄35周岁及以下"]
[57,"浙江分行","金华市分行","兰溪市支行","个人金融部","经营经理（电子银行）",1,"兰溪","负责统筹管理本部门业务发展策略、市场研究、经营计划、营销策划、业务宣传、经营分析、业务激励政策等相关工作。","金融经济类专业","本科及以上","具备2年以上金融行业相关岗位从业经历","具有互联网企业、大型电子商务企业工作经历的优先","原则上年龄35周岁及以下"]
[58,"浙江分行","金华市分行","浦江县支行","公司业务部","经营经理（金融市场）",1,"浦江","负责统筹管理本部门业务发展策略、市场研究、经营计划、营销策划、业务宣传、经营分析、业务激励政策等相关工作。","金融经济类专业","本科及以上","具备2年以上金融行业相关岗位从业经历",null,"原则上年龄35周岁及以下"]
[59,"浙江分行","衢州市分行","江山市支行","公司业务部","经营管理（公司业务）",1,"江山","负责统筹管理本部门业务发展策略、市场研究、经营计划、营销策划、业务宣传、经营分析、业务激励政策等工作。","金融经济类专业","本科及以上","具备2年以上金融行业相关岗位从业经历",null,"原则上年龄35周岁及以下"]
[60,"浙江分行","丽水市分行","青田县支行","公司业务部","业务管理（国际业务）",1,"青田","负责国际业务的制度建设、业务检查、风险控制、培训与指导等工作。","金融经济类专业","本科及以上","具备2年以上金融行业相关岗位从业经历",null,"原则上年龄35周岁及以下"]

{"sheet":"省汇","index":5,"n_rows":18,"n_cols":7,"rows_kept":18,"hidden":true,"merged":[[0,0,0,6],[1,0,2,0],[1,1,2,1],[1,2,1,4],[1,5,2,5],[1,6,2,6]]}
["2015年省分行机关社会招聘增配情况"]
["部门","增配计划","增配来源",null,null,"缺口","备注"]
[null,null,"内部选聘","总行社招","省分行社招"]
["零售部",1,1]
["电银部",2,null,2,null,null,"储备“电商人才”"]
["公司部",2,1,1,null,null,"增员1人、补员1人。"]
["国际部",2,null,2]
["市场部",5,2,3]
["授信部",1,null,null,1]
["科技部",5,null,null,5,null,"展鸿择优转聘，另增配2015年校招管培生8人。"]
["办公室",1,null,null,1]
["计财部",17,8,null,5,{"$f":"B12-C12-D12-E12","v":4},"内部选聘，另部门现有5人划转，2人外包。"]
["审计部",14,2,null,8,{"$f":"B13-C13-D13-E13","v":4}]
["监察部",1,1,{"$nulls":3},"内部选聘"]
["党群部",1,1]
["安保部",2,2,{"$nulls":3},"内部选聘，补员增配，不占用工指标。"]
["营业部",2,null,null,2,null,"补员，不含财富中心建设增员"]
["合计",{"$f":"SUM(B4:B17)","v":56},{"$f":"SUM(C4:C17)","v":18},{"$f":"SUM(D4:D17)","v":8},{"$f":"SUM(E4:E17)","v":22},{"$f":"SUM(F4:F17)","v":8}]

{"sheet":"杭","index":6,"n_rows":21,"n_cols":15,"rows_kept":21,"hidden":true,"merged":[[1,0,1,14],[2,0,2,1],[2,5,2,6],[2,9,2,10],[2,12,2,14]]}
["附件2："]
["2015年省分行社会招聘需求明细表"]
["行领导：",{"$nulls":4},"分行公章：",{"$nulls":3},"填报人：",null,null,"填报时间："]
["序号","二级分行名称","一级支行名称","所在部门/\n二级支行","招聘岗位","招聘\n人数","工作\n地点","岗位职责","年龄要求","专业要求","学历要求","工作经验要求","持证要求","其他任职要求","备注"]
[1,"杭州市分行","萧山区支行","二级支行","柜员（个人）",3,"萧山","在权限范围内受理本外币公司、个人、中间等各项业务；处理日常现金首付业务；负责当日业务的日常处理与核对等工作。","35周岁及以下","专业不限，金融经济类优先","本科及以上","具备2年以上工作经验，有金融行业相关岗位经历者优先",null,"体型适中、形象气质较好。 ","茹华平离职补员；姚丽丽将离职；客户经理后备不足，拟从行内现有柜员中选拔一名充实。"]
[2,"杭州市分行","余杭区支行","外乔司支行","柜员（个人）",3,"余杭","在权限范围内受理本外币公司、个人、中间等各项业务；处理日常现金首付业务；负责当日业务的日常处理与核对等工作。","35周岁以内","专业不限，金融经济类优先","本科及以上","具备2年以上工作经验，有金融行业相关岗位经历者优先","有会计上岗证优先",null,"新开网点增员"]
[3,"杭州市分行","余杭区支行","外乔司支行","客户经理",1,"余杭","负责个人金融客户、信贷客户、公司客户等各类客户营销工作。","35周岁以内","专业不限，金融经济类优先","本科及以上","具备2年以上工作经验，有金融行业相关岗位经历者优先","有会计上岗证优先",null,"新开网点增员，新增3名编制实在难以满足需要，为控风险提效益，拟配置一名客户经理，男性最佳。"]
[4,"杭州市分行","富阳市支行","二级支行","柜员（个人）",3,"富阳","在权限范围内受理本外币公司、个人、中间等各项业务；处理日常现金首付业务；负责当日业务的日常处理与核对等工作。","35周岁以内","专业不限，金融经济类优先","本科及以上","具备2年以上工作经验，有金融行业相关岗位经历者优先",null,"体型适中、形象气质较好。 ","富阳事件以后，支行减少人员：杨正明、张卓芸、赵燕华、毛蔚华、朱哲颖、菅成昊、马晓燕、缪嘉译，新增人员只有盛家军和挂职助理，现急需补员，以充实力量，提振士气。应届生中富阳生源只有1名，杯水车薪。"]
[5,"杭州市分行","富阳市支行","二级支行","客户经理",2,"富阳","负责个人金融客户、信贷客户、公司客户等各类客户营销工作。","35周岁以内","专业不限，金融经济类优先","本科及以上","具备2年以上工作经验，有金融行业相关岗位经历者优先",null,"沟通能力强","富阳事件以后，支行减少人员：杨正明、张卓芸、赵燕华、毛蔚华、朱哲颖、菅成昊、马晓燕、缪嘉译，新增人员只有盛家军和挂职助理，现急需补员，以充实力量，提振士气。应届生中富阳生源只有1名，杯水车薪。"]
[6,"杭州市分行","临安市支行","龙岗镇支行","柜员（个人）",1,"临安","在权限范围内受理本外币公司、个人、中间等各项业务；处理日常现金首付业务；负责当日业务的日常处理与核对等工作。","35周岁及以下","专业不限，金融经济类优先","本科及以上","具备2年以上工作经验，有金融行业相关岗位经历者优先",null,null,"王玉彩离职，且今年临安支行有5名员工退休，急需补员，应届生分配中临安生源只有2名，且因回原籍，有不稳定因素。"]
[7,"杭州市分行","临安市支行","市支行营业部","柜员（个人）",1,"临安","在权限范围内受理本外币公司、个人、中间等各项业务；处理日常现金首付业务；负责当日业务的日常处理与核对等工作。","35周岁及以下","专业不限，金融经济类优先","本科及以上","具备2年以上工作经验，有金融行业相关岗位经历者优先",null,null,"王玉彩离职，且今年临安支行有5名员工退休，急需补员，应届生分配中临安生源只有2名，且因回原籍，有不稳定因素。"]
[8,"杭州市分行","桐庐县支行","二级支行","客户经理",3,"桐庐","负责个人金融客户、信贷客户、公司客户等各类客户营销工作。","原则上年龄35周岁及以下","专业不限，金融经济类优先","本科及以上","具备2年以上工作经验，有金融行业相关岗位经历者优先",null,null,"桐庐近几年发展较快，信贷规模不断增长，现全行只有客户经理6名，无法满足业务发展需要，长此以往，必将影响现有客户经理工作积极性，现拟每个支行增加1名客户经理。"]
[9,"杭州市分行","建德市支行","二级支行","柜员（个人）",2,"建德","在权限范围内受理本外币公司、个人、中间等各项业务；处理日常现金首付业务；负责当日业务的日常处理与核对等工作。","35周岁及以下","专业不限，金融经济类优先","本科及以上","具备2年以上工作经验，有金融行业相关岗位经历者优先","取得银行业从业资格证书的优先考虑","有良好的沟通能力，学习能力。","2015年度退休2名，离职1名，拟离职1名；2014年度退休3名，离职1名，调省分行1名，只增员了2名。现人员紧缺，应届生中建德生源仅2名。"]
[10,"杭州市分行","建德市支行","二级支行","客户经理",3,"建德","负责个人金融客户、信贷客户、公司客户等各类客户营销工作。","35周岁及以下","专业不限，金融经济类优先","本科及以上","具备2年以上工作经验，有金融行业相关岗位经历者优先","取得银行业从业资格证书的优先考虑","有良好的沟通能力，学习能力。","2015年度退休2名，离职1名，拟离职1名；2014年度退休3名，离职1名，调省分行1名，只增员了2名。现人员紧缺，应届生中建德生源仅2名。"]
[11,"杭州市分行","淳安县支行","二级支行","柜员（个人）",3,"淳安","在权限范围内受理本外币公司、个人、中间等各项业务；处理日常现金首付业务；负责当日业务的日常处理与核对等工作。","35周岁及以下","专业不限，金融经济类优先","本科及以上","具备2年以上工作经验，有金融行业相关岗位经历者优先","有会计上岗证优先",null,"林强斌、解杨森、邵露离职补员；一名退休；胡志丽将调动，且存在未提交离职申请但有离职意向的人员；应届生招聘未有淳安生源，拟调剂2名只能解决一时之需，长远必将带来人员流动。"]
[12,"杭州市分行","淳安县支行","二级支行","客户经理",3,"淳安","负责个人金融客户、信贷客户、公司客户等各类客户营销工作。","35周岁及以下","专业不限，金融经济类优先","本科及以上","具备2年以上工作经验，有金融行业相关岗位经历者优先","有会计上岗证优先",null,"林强斌、解杨森、邵露离职补员；一名退休；胡志丽将调动，且存在未提交离职申请但有离职意向的人员；应届生招聘未有淳安生源，拟调剂2名只能解决一时之需，长远必将带来人员流动。"]
[13,"杭州市分行",null,"公司业务部","票据中心主任",1,"杭州","负责票据中心各项经营、管理及客户开发、营销与维护等工作。","原则上35周岁以下","专业不限，金融经济类优先","本科及以上","具备2年以上工作经验，有金融行业相关岗位经历者优先",null,null,"现票据中心主任拟离职"]
[14,"杭州市分行",null,"二级支行","客户经理（公司）",3,"杭州","负责个人金融客户、信贷客户、公司客户等各类客户营销工作。","原则上35周岁以下","专业不限，金融经济类优先","本科及以上","具备2年以上工作经验，有金融行业相关岗位经历者优先",null,null,"公司信贷团队人员（叶乔、孙希蒙）离职补员，二级支行客户经理补员。"]
[15,"杭州市分行",null,"财富中心","主任",1,"杭州","负责财富中心各项经营、管理工作。","原则上40周岁及以下","专业不限，金融经济类优先","本科及以上","具备2年以上工作经验，有金融行业相关岗位经历者优先",null,null,"财富中心建设需要"]
[16,"杭州市分行",null,"财富中心","理财经理",4,"杭州","负责理财产品营销等工作。","原则上35周岁以下","专业不限，金融经济类优先","本科及以上","具备2年以上工作经验，有金融行业相关岗位经历者优先",null,"专业、形象好。","财富中心建设需要"]
[17,"杭州市分行",null,"财富中心","大堂经理",2,"杭州","引导、分流客户，并提供咨询和营销服务；处理客户异议，维持正常营业秩序；保证营业厅内的干净整洁，创造良好的服务环境；组织并监督营业厅服务工作。","原则上35周岁以下","专业不限，金融经济类优先","本科及以上","具备2年以上工作经验，有金融行业相关岗位经历者优先",null,"专业、形象好。","财富中心建设需要"]

{"sheet":"温","index":7,"n_rows":12,"n_cols":15,"rows_kept":12,"hidden":true,"merged":[[1,0,1,14],[2,0,2,1],[2,5,2,6],[2,9,2,10],[2,12,2,14]]}
["附件2："]
["2015年省分行社会招聘需求明细表"]
["行领导：",{"$nulls":4},"分行公章：",{"$nulls":3},"填报人：郑江漩",null,null,"填报时间：2015-7-15"]
["序号","二级分行名称","一级支行名称","所在部门/\n二级支行","招聘岗位","招聘\n人数","工作\n地点","岗位职责","年龄要求","专业要求","学历要求","工作经验要求","持证要求","其他任职要求","备注"]
[1,"温州市分行","无","无","应用开发",1,"温州","负责项目在本辖区的推广和配套开发，本行信息技术项目的开发相关工作及应用系统的优化和技术支持。","35周岁及以下","信息技术类专业","本科及以上","具备2年以上软件开发经验。参与过多个项目的设计开发工作，有金融行业开发经验者优先","无"]
[2,"温州市分行","无","无","客户经理",3,"温州","负责个人金融客户、信贷客户、公司客户等各类客户营销工作。","35周岁及以下","金融、经济、财务、营销等相关专业","本科及以上","具备2年以上工作经验，有金融行业相关岗位工作经验者优先","无","具有良好的营销和沟通能力，吃苦耐劳，积极向上。"]
[3,"温州市分行","瑞安市支行","无","客户经理",1,"瑞安","负责个人金融客户、信贷客户、公司客户等各类客户营销工作。","35周岁及以下","金融、经济、财务、营销等相关专业","本科及以上","具备2年以上工作经验，有金融行业相关岗位工作经验者优先","无","具有良好的营销和沟通能力，吃苦耐劳，积极向上。"]
[4,"温州市分行","泰顺县支行","无","客户经理",1,"泰顺","负责个人金融客户、信贷客户、公司客户等各类客户营销工作。","35周岁及以下","金融、经济、财务、营销等相关专业","本科及以上","具备2年以上工作经验，有金融行业相关岗位工作经验者优先","无","具有良好的营销和沟通能力，吃苦耐劳，积极向上。"]
[5,"温州市分行","文成县支行","无","客户经理",1,"文成","负责个人金融客户、信贷客户、公司客户等各类客户营销工作。","35周岁及以下","金融、经济、财务、营销等相关专业","本科及以上","具备2年以上工作经验，有金融行业相关岗位工作经验者优先","无","具有良好的营销和沟通能力，吃苦耐劳，积极向上。"]
[6,"温州市分行","永嘉县支行","无","客户经理",1,"永嘉","负责个人金融客户、信贷客户、公司客户等各类客户营销工作。","35周岁及以下","金融、经济、财务、营销等相关专业","本科及以上","具备2年以上工作经验，有金融行业相关岗位工作经验者优先","无","具有良好的营销和沟通能力，吃苦耐劳，积极向上。"]
[7,"温州市分行","平阳县支行","无","客户经理",1,"平阳","负责个人金融客户、信贷客户、公司客户等各类客户营销工作。","35周岁及以下","金融、经济、财务、营销等相关专业","本科及以上","具备2年以上工作经验，有金融行业相关岗位工作经验者优先","无","具有良好的营销和沟通能力，吃苦耐劳，积极向上。"]
[8,"温州市分行","洞头县支行","无","客户经理",1,"洞头","负责个人金融客户、信贷客户、公司客户等各类客户营销工作。","35周岁及以下","金融、经济、财务、营销等相关专业","本科及以上","具备2年以上工作经验，有金融行业相关岗位工作经验者优先","无","具有良好的营销和沟通能力，吃苦耐劳，积极向上。"]

{"sheet":"嘉","index":8,"n_rows":8,"n_cols":15,"rows_kept":8,"hidden":true,"merged":[[1,0,1,14],[2,0,2,1],[2,5,2,6],[2,9,2,10],[2,12,2,14]]}
["附件2："]
["2015年省分行社会招聘需求明细表"]
["行领导：",{"$nulls":4},"分行公章：",{"$nulls":3},"填报人：",null,"屠晓凌","填报时间：2015年7月14日"]
["序号","二级分行名称","一级支行名称","所在部门/\n二级支行","招聘岗位","招聘\n人数","工作\n地点","岗位职责","年龄要求","专业要求","学历要求","工作经验要求","持证要求","其他任职要求","备注"]
[1,"嘉兴市分行",null,"无","客户经理",1,"嘉兴","负责个人金融客户、信贷客户、公司客户等各类客户营销工作","35周岁及以下","专业不限，金融、经济、市场营销、会计相关专业优先","本科及以上","具备2年以上工作经验，有金融行业相关岗位工作经验者优先；有较强的逻辑分析能力，敏锐的观察力，良好的沟通能力、语言表达和市场开拓能力。","通过银行业专业人员职业资格考试考试者优先","1、严格遵守职业道德标准和守则；\n2、充分掌握信贷类业务相关的法律法规、行政规章和监管要求等；\n3、熟悉银行信贷类业务，具备较强的产品营销、业务管理、客户开发和维护能力。"]
[1,"嘉兴市分行","桐乡市支行","无","客户经理",1,"桐乡","负责个人金融客户、信贷客户、公司客户等各类客户营销工作","35周岁及以下","专业不限，金融、经济、市场营销、会计相关专业优先","本科及以上","具备2年以上工作经验，有金融行业相关岗位工作经验者优先；有较强的逻辑分析能力，敏锐的观察力，良好的沟通能力、语言表达和市场开拓能力。","通过银行业专业人员职业资格考试考试者优先","1、严格遵守职业道德标准和守则；\n2、充分掌握信贷类业务相关的法律法规、行政规章和监管要求等；\n3、熟悉银行信贷类业务，具备较强的产品营销、业务管理、客户开发和维护能力。"]
[1,"嘉兴市分行","海盐县支行","无","客户经理",1,"海盐","负责个人金融客户、信贷客户、公司客户等各类客户营销工作","35周岁及以下","专业不限，金融、经济、市场营销、会计相关专业优先","本科及以上","具备2年以上工作经验，有金融行业相关岗位工作经验者优先；有较强的逻辑分析能力，敏锐的观察力，良好的沟通能力、语言表达和市场开拓能力。","通过银行业专业人员职业资格考试考试者优先","1、严格遵守职业道德标准和守则；\n2、充分掌握信贷类业务相关的法律法规、行政规章和监管要求等；\n3、熟悉银行信贷类业务，具备较强的产品营销、业务管理、客户开发和维护能力。"]
[2,"嘉兴市分行",null,"无","理财经理",2,"嘉兴","负责理财产品营销等工作。","35周岁及以下","专业不限，金融、经济、市场营销、会计相关专业优先","本科及以上","具备2年以上工作经验，有银行工作经验者优先；有较强理财专业知识。","具有会计从业资格证、保险销售从业人员资格证书、证券从业人员资格证书或黄金交易员资格证书者优先","1、严格遵守职业道德标准和守则；\n2、充分掌握理财类业务相关的法律法规、行政规章和监管要求等；\n3、熟悉银行理财类业务，具备较强的产品营销、业务管理、客户开发和维护能力。"]

{"sheet":"湖","index":9,"n_rows":8,"n_cols":15,"rows_kept":8,"hidden":true,"merged":[[1,0,1,14],[2,0,2,1],[2,5,2,6],[2,9,2,10],[2,12,2,14]]}
["附件2："]
["2015年省分行社会招聘需求明细表"]
["行领导：",{"$nulls":4},"分行公章：",{"$nulls":3},"填报人：",null,null,"填报时间："]
["序号","二级分行名称","一级支行名称","所在部门/\n二级支行","招聘岗位","招聘\n人数","工作\n地点","岗位职责","年龄要求","专业要求","学历要求","工作经验要求","持证要求","其他任职要求","备注"]
[1,"湖州市分行","长兴县支行",null,"客户经理",5,"长兴","负责个人信贷、公司信贷、各项业务营销等工作。\n","35周岁以下","经济金融类相关专业","本科及以上","具备两年以上工作经验，有金融行业相关工作经历者优先"]
[2,"湖州市分行","安吉县支行",null,"客户经理",4,"安吉","负责个人信贷、公司信贷、各项业务营销等工作。\n","35周岁及以下","经济金融类相关专业","本科及以上","具备两年以上工作经验，有金融行业相关工作经历者优先"]
[3,"湖州市分行","德清县支行",null,"客户经理",3,"德清","负责个人信贷、公司信贷、各项业务营销等工作。\n","35周岁及以下","经济金融类相关专业","本科以上","具备两年以上工作经验，有金融行业相关工作经历者优先"]
[4,"湖州市分行",null,null,"客户经理",7,"市本级","负责个人信贷、公司信贷、各项业务营销等工作。\n","35周岁及以下","经济金融类相关专业","本科以上","具备两年以上工作经验，有金融行业相关工作经历者优先"]

{"sheet":"绍","index":10,"n_rows":16,"n_cols":15,"rows_kept":16,"hidden":true,"merged":[[1,0,1,14],[2,0,2,1],[2,5,2,6],[2,9,2,10],[2,12,2,14]]}
["附件2："]
["2015年省分行社会招聘需求明细表"]
["行领导：",{"$nulls":4},"分行公章：",{"$nulls":3},"填报人：胡益江",null,null,"填报时间：2015-07-15"]
[]
["序号","二级分行名称","一级支行名称","所在部门/\n二级支行","招聘岗位","招聘\n人数","工作\n地点","岗位职责","年龄要求","专业要求","学历要求","工作经验要求","持证要求","其他任职要求","备注"]
[1,"绍兴市分行","无","营业部","客户经理",2,"绍兴","负责个人金融客户、信贷客户、公司客户等各类客户营销工作。","原则上年龄35周岁及以下","金融经济类专业","本科及以上","具备2年以上金融行业相关岗位从业经历"]
[2,"绍兴市分行","无","公司业务部","客户经理(资金业务）",1,"绍兴","负责公司客户营销、客户关系的建立和维护，客户授信条件等内容的调查审核等工作。","原则上年龄35周岁及以下","金融经济类专业","本科及以上","具备2年以上金融行业相关岗位从业经历"]
[3,"绍兴市分行","无","公司业务部","客户经理(贸易金融业务）",1,"绍兴","负责公司客户营销、客户关系的建立和维护，客户授信条件等内容的调查审核等工作。","原则上年龄35周岁及以下","金融经济类专业","本科及以上","具备2年以上金融行业相关岗位从业经历"]
[4,"绍兴市分行","无","公司业务部","产品经理(资产负债管理）",1,"绍兴","负责对公理财、现金管理业务营销管理、市场分析、产品研发、新产品营销推广与培训指导、营销支持等工作。","原则上年龄35周岁及以下","金融经济类专业","本科及以上","具备2年以上金融行业相关岗位从业经历"]
[5,"绍兴市分行","无","个人金融部","产品经理（信用卡）",1,"绍兴","负责产品市场调研、产品设计、营销推广、销售支持、业务培训等工作。","原则上年龄35周岁及以下","金融经济类专业","本科及以上","具备2年以上金融行业相关岗位从业经历"]
[6,"绍兴市分行","无","营业部","理财经理",1,"绍兴","负责理财产品营销等工作。","原则上年龄35周岁及以下","金融经济类专业","本科及以上","具备2年以上金融行业相关岗位从业经历","具有AFP或CFP 资格证"]
[7,"绍兴市分行","无","信息科技部","信息安全管理",1,"绍兴","负责信息系统安全和风险管理等相关工作。","原则上年龄35周岁及以下","信息技术类专业","本科及以上","具备2年以上信息技术行业相关岗位从业经历"]
[8,"绍兴市分行","无","法律与合规部","合规管理",1,"绍兴","负责合规制度的制定，负责全行制度梳理、合规咨询、合规审查、合规评估及合规文化建设等工作。","原则上年龄35周岁及以下","金融经济类、法律类专业","本科及以上","具备2年以上金融行业相关岗位从业经历"]
[9,"绍兴市分行","无","授信管理部","授信管理",1,"绍兴","负责授信管理相关规章制度制定、授权管理、征信管理、行业研究和分析、信贷政策、行业风险监测，授信执行环节的监督检查。","原则上年龄35周岁及以下","金融经济类、法律类专业","本科及以上","具备2年以上金融行业相关岗位从业经历"]
[10,"绍兴市分行","无","资产保全部","资产保全",1,"绍兴","负责资产保全业务管理工作，提供资产保全法律事务保障及资产保全综合协调工作等。","原则上年龄35周岁及以下","金融经济类、法律类专业","本科及以上","具备2年以上金融行业相关岗位从业经历"]
[11,"绍兴市分行","无","办公室","综合管理",1,"绍兴","负责印章管理、档案管理、保密、机要管理、文件收发、后勤管理、会议管理等综合性行政管理工作。","原则上年龄35周岁及以下","金融经济类、文学类专业","本科及以上","具备2年以上经济金融相关岗位从业经历"]

{"sheet":"金","index":11,"n_rows":16,"n_cols":15,"rows_kept":16,"hidden":true,"merged":[[1,0,1,14],[2,0,2,1],[2,5,2,6],[2,9,2,10],[2,12,2,14]]}
["附件2："]
["2015年省分行社会招聘需求明细表"]
["行领导：",{"$nulls":4},"分行公章：",{"$nulls":3},"填报人：",null,null,"填报时间："]
["序号","二级分行名称","一级支行名称","所在部门/\n二级支行","招聘岗位","招聘\n人数","工作\n地点","岗位职责","年龄要求","专业要求","学历要求","工作经验要求","持证要求","其他任职要求","备注"]
[1,"金华市分行","无","营业部","客户经理",2,"金华","负责个人金融客户、信贷客户、公司客户等各类客户营销工作。","35周岁及以下","金融经济类、财务会计类专业优先","本科及以上","具有2年以上工作经历，具有金融行业相关岗位从业经历优先"]
[2,"金华市分行","义乌市支行","公司业务部","副总经理",1,"义乌","协助总经理做好部门各项经营、管理等工作。","40周岁及以下","金融经济类、财务会计类专业优先","本科及以上","具有5年以上金融行业相关岗位从业经历，具有相关业务管理工作经历。",null,"具有丰富的渠道资源、团队管理经验和较强的拓展、带队能力，熟悉金融市场各板块业务；有能力带领员工完成各项金融市场经营指标"]
[3,"金华市分行","义乌市支行","营业部","客户经理",4,"义乌","负责个人金融客户、信贷客户、公司客户等各类客户营销工作。","35周岁及以下","金融经济类、财务会计类专业优先","本科及以上","具有2年以上工作经历，具有金融行业相关岗位从业经历优先"]
[4,"金华市分行","永康市支行","二级支行","客户经理",4,"永康","负责个人金融客户、信贷客户、公司客户等各类客户营销工作。","35周岁及以下","金融经济类、财务会计类专业优先","本科及以上","具有2年以上工作经历，具有金融行业相关岗位从业经历优先"]
[5,"金华市分行","永康市支行","综合管理部","系统管理员",1,"永康","负责信息系统和网络维护及管理、终端设备维护、机房值班等工作。","35周岁及以下","金融经济类、财务会计类专业优先","本科及以上","具有2年以上相关岗位工作经历，具有金融行业相关岗位从业经历优先"]
[6,"金华市分行","东阳市支行","二级支行","客户经理",4,"东阳","负责个人金融客户、信贷客户、公司客户等各类客户营销工作。","35周岁及以下","金融经济类、财务会计类专业优先","本科及以上","具有2年以上工作经历，具有金融行业相关岗位从业经历优先"]
[7,"金华市分行","磐安县支行","营业部","理财经理",1,"磐安","负责理财产品营销等工作。","35周岁及以下","金融经济类、财务会计类专业优先","本科及以上","具有2年以上工作经历，具有金融行业相关岗位从业经历优先"]
[8,"金华市分行","磐安县支行","营业部","客户经理",1,"磐安","负责个人金融客户、信贷客户、公司客户等各类客户营销工作。","35周岁及以下","金融经济类、财务会计类专业优先","本科及以上","具有2年以上工作经历，具有金融行业相关岗位从业经历优先"]
[9,"金华市分行","浦江县支行",null,"客户经理",1,"浦江","负责个人金融客户、信贷客户、公司客户等各类客户营销工作。","35周岁及以下","金融经济类、财务会计类专业优先","本科及以上","具有2年以上工作经历，具有金融行业相关岗位从业经历优先","具有会计从业资格证"]
[10,"金华市分行","武义县支行","桐琴镇支行","客户经理",2,"武义","负责个人金融客户、信贷客户、公司客户等各类客户营销工作。","35周岁及以下","金融经济类、财务会计类专业优先","本科及以上","具有2年以上工作经历，具有金融行业相关岗位从业经历优先"]
[11,"金华市分行","武义县支行","营业部","客户经理",2,"武义","负责个人金融客户、信贷客户、公司客户等各类客户营销工作。","35周岁及以下","金融经济类、财务会计类专业优先","本科及以上","具有2年以上工作经历，具有金融行业相关岗位从业经历优先"]
[12,"金华市分行","武义县支行","桐琴镇支行","理财经理",1,"武义","负责理财产品推广和销售。","35周岁及以下","金融经济类、财务会计类专业优先","本科及以上","具有2年以上工作经历，具有金融行业相关岗位从业经历优先"]

{"sheet":"衢","index":12,"n_rows":9,"n_cols":15,"rows_kept":9,"hidden":true,"merged":[[1,0,1,14],[2,0,2,1],[2,5,2,6],[2,9,2,10],[2,12,2,14]]}
["附件2："]
["2015年省分行社会招聘需求明细表"]
["行领导：",{"$nulls":4},"分行公章：",{"$nulls":3},"填报人：",null,"吴真","填报时间：2015-7-10"]
["序号","二级分行名称","一级支行名称","所在部门/\n二级支行","招聘岗位","招聘\n人数","工作\n地点","岗位职责","年龄要求","专业要求","学历要求","工作经验要求","持证要求","其他任职要求","备注"]
[1,"衢州市分行",null,"风险管理部","资产保全",1,"衢州","负责资产保全业务管理，提供资产保全法律事务保障及资产保全综合协调工作等。","35周岁及以下","金融经济类专业","本科及以上","具备2年以上金融行业相关岗位从业经历","无","无","业务发展需要，加强风险管理人才"]
[2,"衢州市分行",null,"零售信贷部","产品经理",1,"衢州","负责产品市场调研、产品设计、营销推广、销售支持、业务培训等工作。","35周岁及以下","金融经济类专业","本科及以上","具备2年以上金融行业相关岗位从业经历","无","无","需要产品策划、宣传人员"]
[3,"衢州市分行","开化县支行","个人金融部","业务管理",1,"开化","负责金融市场拓展、信用卡、电子银行等业务的制度建设、业务检查、风险控制、培训与指导等工作。","35周岁及以下","金融经济类专业","本科及以上","具备2年以上金融行业相关岗位从业经历","无","最好为男性","业务人员较缺"]
[4,"衢州市分行","龙游县支行","公司业务部","经营管理（公司业务）",1,"龙游","负责统筹管理本部门业务发展策略、市场研究、经营计划、营销策划、业务宣传、经营分析、业务激励政策等工作。","35周岁及以下","金融经济类专业","本科及以上","具备2年以上金融行业相关岗位从业经历","无","无","缺公司业务综合性人员"]
[5,"衢州分行","常山县支行","营业部","客户经理",1,"常山","负责个人金融客户、信贷客户、公司客户等各类客户营销工作。","35周岁及以下","金融经济类专业","本科及以上","具备2年以上金融行业相关岗位从业经历","无","无","发展业务"]

{"sheet":"台","index":13,"n_rows":15,"n_cols":15,"rows_kept":15,"hidden":true,"merged":[[1,0,1,14],[2,0,2,1],[2,5,2,6],[2,9,2,10],[2,12,2,14]]}
["附件2："]
["2015年省分行社会招聘需求明细表"]
["行领导：",{"$nulls":4},"分行公章：",{"$nulls":3},"填报人：",null,null,"填报时间："]
["序号","二级分行名称","一级支行名称","所在部门/\n二级支行","招聘岗位","招聘\n人数","工作\n地点","岗位职责","年龄要求","专业要求","学历要求","工作经验要求","持证要求","其他任职要求","备注"]
[1,"台州市分行","无","个人金融部信用卡部","产品经理",1,"台州","负责信用卡市场调研、产品设计、营销推广、销售支持、业务培训等工作。","原则上年龄35周岁及以下","金融经济类专业","本科及以上","具备2年以上金融行业相关岗位从业经历"]
[2,"台州市分行","无",null,"理财经理",2,"台州","负责理财产品营销等工作。","原则上年龄35周岁及以下","金融经济类专业","本科及以上","具备2年以上金融行业相关岗位从业经历"]
[3,"台州市分行","无","授信管理部","授信审批",1,"台州","负责授权范围内的授信的独立审批或审议工作。","原则上年龄35周岁及以下","金融经济类专业","本科及以上","具备2年以上金融行业相关岗位从业经历"]
[null,"台州市分行","无","授信管理部","授信审查",1,"台州","负责业务报批材料的接收、审查等工作，出具审查报告；负责贷审会相关组织落实工作，整理下发审批决策的意见。","原则上年龄35周岁及以下","金融经济类专业","本科及以上","具备2年以上金融行业相关岗位从业经历"]
[4,"台州市分行","无","公司业务部","客户经理",1,"台州","负责客户拓展与营销、客户关系维护、为客户提供财务分析或投资建议、管理相应模块等工作。","原则上年龄35周岁及以下","金融经济类专业","本科及以上","具备2年以上金融行业相关岗位从业经历"]
[5,"台州市分行","无","票据中心","票据审验",1,"台州"," 负责操作票据承兑、贴现、行内转贴现、再贴现等票据融资业务。","原则上年龄35周岁及以下","金融经济类专业","本科及以上","具备2年以上金融行业相关岗位从业经历"]
[6,"台州市分行","玉环县支行",null,"客户经理",6,"玉环","负责个人金融客户、信贷客户、公司客户等各类客户营销工作。","原则上年龄35周岁及以下","专业不限，金融经济类相关专业优先","本科及以上","具备2年以上工作经验，有金融行业相关岗位经历者优先"]
[7,"台州市分行","黄岩区支行",null,"客户经理",2,"黄岩","负责个人金融客户、信贷客户、公司客户等各类客户营销工作。","原则上年龄35周岁及以下","专业不限，金融经济类相关专业优先","本科及以上","具备2年以上工作经验，有金融行业相关岗位经历者优先"]
[8,"台州市分行","温岭市支行",null,"客户经理",4,"温岭","负责个人金融客户、信贷客户、公司客户等各类客户营销工作。","原则上年龄35周岁及以下","专业不限，金融经济类相关专业优先","本科及以上","具备2年以上工作经验，有金融行业相关岗位经历者优先"]
[9,"台州市分行","临海市支行",null,"客户经理",3,"临海","负责个人金融客户、信贷客户、公司客户等各类客户营销工作。","原则上年龄35周岁及以下","专业不限，金融经济类相关专业优先","本科及以上","具备2年以上工作经验，有金融行业相关岗位经历者优先"]
[{"$nulls":5},{"$f":"SUM(F5:F14)","v":22}]

{"sheet":"舟","index":14,"n_rows":11,"n_cols":15,"rows_kept":11,"hidden":true,"merged":[[1,0,1,14],[2,0,2,1],[2,5,2,6],[2,9,2,10],[2,12,2,14]]}
["附件2："]
["2015年省分行社会招聘需求明细表"]
["行领导：",{"$nulls":4},"分行公章：",{"$nulls":3},"填报人：刘谨源",null,null,"填报时间：2015年7月15日"]
["序号","二级分行名称","一级支行名称","所在部门/\n二级支行","招聘岗位","招聘\n人数","工作\n地点","岗位职责","年龄要求","专业要求","学历要求","工作经验要求","持证要求","其他任职要求","备注"]
[1,"舟山市分行","无","公司业务部","副总经理",1,"舟山","协助总经理做好辖内公司业务、国际业务、金融市场供应链等工作。","35周岁以下","金融经济类专业","本科及以上","具备4年以上金融行业相关岗位从业经历，具有相关公司业务管理从业经历。"]
[2,"舟山市分行","无","个人金融部信用卡中心","业务管理",1,"舟山","负责信用卡业务的宣传、日常管理等综合业务管理工作。","35周岁及以下","金融经济类专业","本科及以上","具备2年以上金融行业相关岗位从业经历"]
[3,"舟山市分行","无","无","一级支行副行长",1,"舟山辖内","协助行长做好辖内经营、管理工作。","35周岁以下","金融经济类专业","本科及以上","具备4年以上金融行业相关岗位从业经历，具有同业分支行领导经历。"]
[4,"舟山市分行","无","办公室","秘书",1,"舟山","负责起草分行行政文件和材料、媒体管理及宣传活动组织工作。","35周岁及以下","金融经济类、文学类专业","本科及以上","具备2年以上金融行业相关岗位从业经历",null,"需男性"]
[5,"舟山市分行","无","零售信贷部","产品经理",2,"舟山","负责个人贷款业务的产品设计、制度起草修订、业务推广、销售支持、业务培训等工作。","35周岁及以下","金融经济类专业","本科及以上","具备2年以上金融行业相关岗位从业经历"]
[6,"舟山市分行","无","资产保全部","资产保全",1,"舟山","负责资产保全业务管理工作，提供资产保全法律事务保障等。","35周岁及以下","金融经济类专业","本科及以上","具备2年以上金融行业相关岗位从业经历"]
[7,"舟山市分行","无","风险管理部","风险管理",1,"舟山","负责风险管理政策的落实、分行的风险评估和管理及授信资产的资产分类、拨备计量等工作。","35周岁及以下","金融经济类专业","本科及以上","具备2年以上金融行业相关岗位从业经历"]

{"sheet":"省","index":15,"n_rows":15,"n_cols":15,"rows_kept":15,"hidden":true,"merged":[[1,0,1,14],[2,0,2,1],[2,5,2,6],[2,9,2,10],[2,12,2,14]]}
["附件2："]
["2015年省分行社会招聘需求明细表"]
["行领导：",{"$nulls":4},"分行公章：",{"$nulls":3},"填报人：",null,null,"填报时间："]
["序号","二级分行名称","一级支行名称","所在部门/\n二级支行","招聘岗位","招聘\n人数","工作\n地点","岗位职责","年龄要求","专业要求","学历要求","工作经验要求","持证要求","其他任职要求","备注"]
[9,"浙江省分行",null,"授信管理部","授信审查",1,"杭州","负责贸易融资业务审查。",null,"金融经济类专业","本科及以上","具有3年以上（含）同业贸易融资业务经验。",null,"男性优先考虑"]
[10,"浙江省分行",null,"信息科技部","应用开发",4,"杭州","1.负责本行信息技术项目的开发工作；\n2.负责应用系统的优化和技术支持等工作",null,"计算机相关专业","本科及以上","2年以上银行软件分析、设计和开发的工作经验","鼓励取得PMP资格证书","具有一定的法律、金融、财务知识；具备良好的沟通能力、逻辑思维能力和承压能力"]
[11,"浙江省分行",null,"信息科技部","系统网络管理",1,"杭州","1.负责数据库、操作系统、中间件等管理；\n2.负责信息中心基础设施管理；\n3.负责总行和省内信息化项目的组织和实施；",null,"理工科专业","本科及以上","具备2年以上数据库管理经验","鼓励取得数据库认证证书","无不良行为或业务记录；工作责任心强，逻辑思维能力佳，善于组织沟通协调"]
[12,"浙江省分行",null,"审计部","个人业务审计（资产业务）",1,"杭州","1.负责参与制定资产业务审计制度、审计计划和审计工作方案；\n2.实施资产业务审计计划，拟定审计实施方案并实施，撰写审计报告等。",null,"审计、财务会计类专业","本科及以上","具有2年及以上资产业务检查或信贷等资产业务管理相关岗位工作经验","取得CIA、CPA、ACCA、CGA、CISA、CCSA职业资格的优先。"]
[13,"浙江省分行",null,"审计部","公司业务审计（资产业务）",2,"杭州","1.负责参与制定资产业务审计制度、审计计划和审计工作方案；\n2.实施资产业务审计计划，拟定审计实施方案并实施，撰写审计报告等。",null,"审计、财务会计类专业","本科及以上","具有2年及以上资产业务审计或信贷、票据贴现、金融市场等资产业务管理相关岗位工作经验","取得CIA、CPA、ACCA、CGA、CISA、CCSA职业资格的优先。"]
[14,"浙江省分行",null,"审计部","IT审计",2,"杭州","1.负责参与制定IT审计制度、审计计划和审计工作方案；\n2.实施IT审计计划，拟定审计实施方案并实施，撰写审计报告；\n3.参与审计信息系统建设工作；\n4.运用集中监控、统一分析的结果为现场审计提供审计重点，编写审计模型、撰写非现场分析报告等。",null,"理工科专业","本科及以上","具有2年及以上信息科技相关岗位的工作经验，","取得CIA、CPA、ACCA、CGA、CISA、CCSA职业资格的优先。","具备审计或资产业务、中间业务、负债业务经验的优先"]
[15,"浙江省分行",null,"审计部","经济责任审计",1,"杭州","1.负责参与制定经济责任审计制度、审计计划和审计工作方案；\n2.实施经济责任审计计划，拟定审计实施方案并实施，撰写审计报告等。",null,"审计、财务会计类专业","本科及以上","具有2年及以上经济责任及财务审计或资产业务、负债业务、中间业务、计划财务、风险管理等相关岗位的工作经验；","取得CIA、CPA、ACCA、CGA、CISA、CCSA职业资格的优先。"]
[16,"浙江省分行",null,"审计部","财务审计",2,"杭州","1.负责参与制定财务审计制度、审计计划和审计工作方案；\n2.实施财务审计计划，拟定审计实施方案并实施，撰写审计报告等。",null,"审计、财务会计类专业","本科及以上","具有2年及以上财务审计或计划财务管理相关岗位的工作经验；","取得CIA、CPA、ACCA、CGA、CISA、CCSA职业资格的优先。"]
[17,"浙江省分行",null,"计划财务部","财务审核",5,"杭州","1.负责审核核算会计编制的记账凭证；\n2.负责归纳和整理会计核算中涉及的问题并提出解决建议；\n3.负责定期开展会计信息专题分析和财务检查，并对市分行预算执行情况进行监控。",null,"财务会计类专业","本科及以上","具有3年以上财务工作经验","会计从业资格证书、初级专业技术资格"]
[18,"浙江省分行",null,"办公室","品牌建设与管理",1,"杭州","1.负责品牌文化建设、对外形象宣传、业务、产品宣传；\n2.负责企业形象维护，负责辖内舆情监测、控制，媒体关系管理；\n3.协助全行声誉风险管理工作。",null,"专业不限","本科及以上","具有2年以上从业经验",null,"男性优先考虑"]
[1,"浙江省分行营业部",null,"业务发展部","公司客户经理",2,"营业部","负责公司业务、金融市场业务、网商业务等营销。","35周岁及以下","\n经济、金融等相关专业","本科及以上","具备3年以上金融同业经验；具备一定的商务谈判、市场拓展与文字处理能力。"]